Cogmind - Beta 13 @@@ ROGUE MODE // 2024.04.16 @ 20:29:48 Player: DeathByZer0 Result: Destroyed by Y-45 Defender with Beam Rifle Performance ------------- Evolutions (1) 500 Regions Visited (3) 600 Robots Destroyed (74) 370 Value Destroyed (1658) 1658 Prototype IDs (6) 120 Alien Tech Used (0) 0 Bonus (190) 190 TOTAL SCORE: 3438 Bonus ------- High Alert Combat Kills 190 Cogmind --------- Core Integrity 0/400 Matter 293/300 Energy 68/100 System Corruption 5% Temperature Warm (122) Movement Treading (160) Location -9/Storage Parts ------- > --- POWER (1) -------- (None) > --- PROPULSION (4) --- Light Treads Improved Flight Unit Cooled VTOL Module > --- UTILITY (2) ------ ECM Suite Light Armor Plating > --- WEAPON (2) ------- Improved Medium Laser Improved Medium Laser > --- INVENTORY (5) ---- Heavy Ion Engine Medium Battery (150) Grenade Launcher Peak State ------------ > --- POWER ------------ Heavy Ion Engine > --- PROPULSION ------- Flight Unit Flight Unit Improved Flight Unit Cooled VTOL Module > --- UTILITY ---------- Improved Heat Sink ECM Suite > --- WEAPON ----------- Improved Medium Laser Improved Medium Laser > --- INVENTORY -------- Light Ion Engine Improved Targeting Computer ECM Suite Improved Medium Laser [Rating: 23] Favorites ----------- Power Light Ion Engine Engine Light Ion Engine Propulsion Flight Unit Treads Light Treads Leg Improved Aluminum Leg Flight Unit Flight Unit Utility Improved Heat Sink Device Improved Heat Sink Storage Medium Battery Processor Improved Targeting Computer Protection Light Armor Plating Weapon Improved Medium Laser Energy Gun Improved Medium Laser Energy Cannon Advanced Beam Cannon Ballistic Gun Light Assault Rifle Launcher Grenade Launcher Special Weapon Plasma Cutter Impact Weapon Hammer Build | -11 -10 -9 -9 ------- Run | Yrd Mat Mat Sto Slots Evolved 2 | . . 2 . Power . | . . . . Propulsion 2 | . . 2 . Utility . | . . . . Weapon . | . . . . Parts Attached 92 | 5 10 28 49 Power 22 | 1 1 6 14 Engine 22 | 1 1 6 14 Core . | . . . . Reactor . | . . . . Propulsion 29 | 2 4 10 13 Treads 3 | . . . 3 Leg 12 | 2 4 4 2 Wheel . | . . . . Hover . | . . . . Flight 14 | . . 6 8 Utility 11 | . 2 2 7 Device 6 | . 1 2 3 Storage 1 | . . . 1 Processor 2 | . 1 . 1 Hackware . | . . . . Protection 2 | . . . 2 Artifact . | . . . . Weapon 30 | 2 3 10 15 Energy Gun 17 | . 2 6 9 Energy Cannon 2 | . . . 2 Ballistic Gun 2 | 2 . . . Ballistic Cannon . | . . . . Launcher 7 | . 1 3 3 Special Weapon 1 | . . 1 . Impact Weapon 1 | . . . 1 Slashing Weapon . | . . . . Piercing Weapon . | . . . . Special Melee Weapon . | . . . . Unidentified Prototypes 6 | . . 2 4 Parts Lost 19 | . . 1 18 Power 3 | . . . 3 Propulsion 9 | . . . 9 Utility 5 | . . 1 4 Weapon 2 | . . . 2 Highest Loss Streak 5 | . . 1 5 To Critical Strikes . | . . . . Average Slot Usage (%) 88 | . 81 97 81 Engine 11 | . 14 11 10 Treads 2 | . . . 5 Leg 13 | . 28 20 1 Flight 20 | . . 23 25 Device 13 | . 6 12 17 Processor 4 | . 3 8 . Protection 1 | . . . 3 Energy Gun 13 | . 6 16 14 Ballistic Gun 2 | . 17 . . Launcher 3 | . 4 5 . Naked Turns . | . . . . Heaviest Build 17 | 5 12 14 17 Greatest Support 52 | 20 26 52 40 Greatest Overweight (x) 4 | . . 3 4 Average Overweight (x) . | . . . . Largest Inventory Capacity 5 | 5 5 5 5 Average Capacity 5 | 5 5 5 5 Most Carried 5 | 2 5 5 5 Average Carried 4 | . 3 4 4 Final Capacity 5 | 5 5 5 5 Final Carried 5 | 1 5 5 3 Class Distribution -------------------- 64% | Mutant 20% | Scavenger-Mutant 12% | Scavenger-Sprinter Dominant Class ---------------- Mutant | -10/Materials Mutant | -9/Materials Mutant | -9/Storage Resources | -11 -10 -9 -9 ----------- Run | Yrd Mat Mat Sto Matter Collected 1503 | 266 115 584 538 Remotely . | . . . . Salvage Created 2141 | 51 228 749 1113 Parts 124 | . 10 50 64 Haulers Intercepted 5 | . . 2 3 Recyclers Shooed 2 | . . 2 . Parts Field Recycled . | . . . . Retrieved Matter . | . . . . Parts Self-Destructed . | . . . . Prevented . | . . . . Kills | -11 -10 -9 -9 ------- Run | Yrd Mat Mat Sto Combat Hostiles Destroyed 50 | 1 6 21 22 Guns 25 | 1 4 10 10 Cannons 2 | . . . 2 AOE 19 | . 2 11 6 Classes Destroyed 9 | 2 . 6 1 Worker 11 | 1 . 6 4 Hauler 5 | . . 2 3 Recycler 3 | . . 2 1 Mechanic 2 | . . 1 1 Watcher 3 | . . 1 2 Swarmer 13 | . . 10 3 Grunt 28 | 1 6 8 13 Brawler 2 | . . . 2 Sentry 7 | . . 3 4 Best Kill Streak 11 | 1 2 7 11 Combat Bots Only 5 | 1 2 4 5 Max Kills in Single Turn 4 | 1 2 3 4 Gunslinging . | . . . . Exploded 3 | . 2 3 2 Melee . | . . . . Uniques/NPCs Destroyed . | . . . . Combat | -11 -10 -9 -9 -------- Run | Yrd Mat Mat Sto Hostile Shots Fired 276 | 7 35 73 161 Missed 93 | 1 12 28 52 Damage Taken 2249 | 66 248 479 1456 Core 514 | 10 97 84 323 Absorbed by Shields . | . . . . Regen/Repaired (Parts) 26 | . . 5 21 Core Remaining (%) 76 | 96 57 . . Volleys Fired 130 | 8 19 47 56 Largest 2 | 2 2 2 2 Hottest 136 | 40 86 112 136 Shots Fired 251 | 16 38 94 103 Gun 200 | 16 36 67 81 Cannon 13 | . . . 13 Launcher 38 | . 2 27 9 Special . | . . . . Kinetic 50 | 16 34 . . Thermal 163 | . 2 67 94 Explosive 38 | . 2 27 9 Electromagnetic . | . . . . Robot Hit Streak 13 | 4 5 13 10 Robot Miss Streak 6 | 2 6 3 3 Penetration Max . | . . . . Secondary Targets 2 | . 1 1 . Max Gunslinging Chain 1 | . 1 1 . Shots Hit Robots 145 | 9 21 44 71 Core Hits 106 | 6 13 49 38 Critical Kills 1 | . . . 1 Critical Parts Destroyed 3 | . . . 3 Critical Strikes 18 | . . 6 12 Burn 14 | . . 6 8 Meltdown 1 | . . . 1 Smash 3 | . . . 3 Melee Attacks 9 | . . . 9 Impact 9 | . . . 9 Slashing . | . . . . Piercing . | . . . . Sneak Attacks 1 | . . . 1 Combat Hostiles . | . . . . Follow-up Attacks . | . . . . Damage Inflicted 4524 | 74 273 1942 2235 Guns 1849 | 74 168 646 961 Cannons 165 | . . . 165 Explosions 2308 | . 105 1296 907 Melee 202 | . . . 202 Ramming . | . . . . Kinetic 228 | 74 154 . . Thermal 1786 | . 14 646 1126 Explosive 2308 | . 105 1296 907 Electromagnetic . | . . . . Impact 202 | . . . 202 Slashing . | . . . . Piercing . | . . . . Highest Corruption 5 | . . . 5 Average Corruption 5 | . . . 5 Corruption Purged . | . . . . Corruption Blocked . | . . . . Effects 11 | . . . 11 Message Errors 3 | . . . 3 Matter Fused 2 | . . . 2 Heat Flow Errors 1 | . . . 1 Data Loss (minor) 3 | . . . 3 Data Loss (major) 1 | . . . 1 Alerts 1 | . . . 1 Overload Shots . | . . . . Overflow Damage 154 | . . 54 100 Projectiles . | . . . . Explosions 70 | . . 54 16 Melee 84 | . . . 84 Knockbacks 1 | . . . 1 Impact 1 | . . . 1 Kinetic . | . . . . Secondary . | . . . . Self-Inflicted Damage 66 | . . . 66 Shots 4 | . . . 4 Rammed . | . . . . Targets Rammed . | . . . . Kicked . | . . . . Crushed . | . . . . Highest Temperature 416 | 12 12 336 416 Average Temperature 130 | 6 7 144 139 Received Heat Transfer 963 | 36 138 144 645 Effects 5 | . . 1 4 Energy Bleed 3 | . . 1 2 Interference 1 | . . . 1 Short Circuit 1 | . . . 1 Siege Activations . | . . . . Robots Corrupted . | . . . . Combat Hostiles . | . . . . Parts Fried . | . . . . Impact Corruptions 3 | . . . 3 Robots Melted 2 | . . . 2 Combat Hostiles 2 | . . . 2 Parts Melted 13 | . . 6 7 Heat Transferred 5106 | . 37 2072 2997 Parts Sabotaged . | . . . . Parts Stolen . | . . . . Parts Stripped . | . . . . Power Chain Reactions . | . . . . Alert | -11 -10 -9 -9 ------- Run | Yrd Mat Mat Sto Peak Influence 709 | 25 249 709 624 Initial 222 | . 16 104 222 Average 411 | 4 110 542 471 Maximum Alert Level 3 | . 1 3 2 Low Security (%) 23 | 100 96 4 . Level 1 10 | . 3 7 18 Level 2 62 | . . 79 81 Level 3 3 | . . 8 . Level 4 . | . . . . Level 5 . | . . . . High Security . | . . . . Max Security . | . . . . Squads Dispatched 9 | . 2 2 5 Investigation 6 | . 2 2 2 Extermination . | . . . . Reinforcement 2 | . . . 2 Assault 1 | . . . 1 Garrison . | . . . . Intercept . | . . . . Searches Triggered . | . . . . Construction Impeded . | . . . . Haulers Reinforced . | . . . . Active Scanning Responses . | . . . . Cargo Convoy Interrupts . | . . . . Stealth | -11 -10 -9 -9 --------- Run | Yrd Mat Mat Sto Distress Signals 5 | . . 2 3 Communications Jammed . | . . . . Distress Signals . | . . . . Times Spotted 76 | 1 11 27 37 Peak Tracking Total 6 | 1 6 4 5 Tactical Retreats 9 | . 2 3 4 Traps | -11 -10 -9 -9 ------- Run | Yrd Mat Mat Sto Traps Triggered 2 | . . . 2 Indirectly . | . . . . Trap Hack Attempts . | . . . . Triggered . | . . . . Disarmed . | . . . . Reprogrammed . | . . . . Reused . | . . . . Traps Extracted . | . . . . Installed . | . . . . Triggered . | . . . . Machines | -11 -10 -9 -9 ---------- Run | Yrd Mat Mat Sto Machines Disabled 5 | . . 4 1 Max in Single Turn 2 | . . 2 1 Machines Repaired . | . . . . Machines Dismantled 2 | . . 2 . Machines Sabotaged . | . . . . Overloaded Fab Kills . | . . . . Hacking | -11 -10 -9 -9 --------- Run | Yrd Mat Mat Sto Machines Accessed 14 | . 3 3 8 Terminals 10 | . 2 2 6 Fabricators . | . . . . Repair Stations 2 | . . 1 1 Recycling Units 2 | . 1 . 1 Scanalyzers . | . . . . Garrison Access . | . . . . Total Hacks 48 | . 13 12 23 Successful 23 | . 6 5 12 Failed 25 | . 7 7 11 Catastrophic 1 | . . . 1 Database Lockouts . | . . . . Manual . | . . . . Terminals 32 | . 10 7 15 Fabricators . | . . . . Repair Stations 11 | . . 5 6 Recycling Units 5 | . 3 . 2 Scanalyzers . | . . . . Garrison Access . | . . . . Terminal Hacks 14 | . 5 2 7 Record 4 | . 2 2 . Open Door 3 | . . . 3 Alert Level 2 | . 2 . . Maintenance Status 1 | . 1 . . Security Status 1 | . . . 1 Patrol Status 1 | . . . 1 Recall Investigation 1 | . . . 1 Hauler Manifests 1 | . . . 1 Fabricator Hacks . | . . . . Repair Station Hacks 6 | . . 3 3 Scan Component 4 | . . 2 2 Repair 2 | . . 1 1 Recycling Unit Hacks 3 | . 1 . 2 Process 1 | . . . 1 Report Inventory 2 | . 1 . 1 Scanalyzer . | . . . . Garrison Access Hacks . | . . . . Unauthorized Hacks . | . . . . Terminals . | . . . . Fabricators . | . . . . Repair Stations . | . . . . Recycling Units . | . . . . Scanalyzers . | . . . . Garrison Access . | . . . . Data Cores Recovered . | . . . . Used . | . . . . Hacking Detections 10 | . 3 3 4 Full Trace Events 9 | . 3 3 3 Feedback Events . | . . . . Feedback Blocked . | . . . . Robot Schematics Acquired . | . . . . Robots Built . | . . . . Authchips . | . . . . Time . | . . . . Total Robot Build Rating . | . . . . Part Schematics Acquired . | . . . . Parts Built . | . . . . Authchips . | . . . . Time . | . . . . Total Part Build Rating . | . . . . Parts Repaired 2 | . . 1 1 Time 90 | . . 26 64 Parts Recycled . | . . . . Recycled Matter 115 | . . . 115 Retrieved Matter . | . . . . Retrieved Components . | . . . . Parts Scanalyzed . | . . . . Part Schematics Acquired . | . . . . Parts Damaged . | . . . . Bothacking | -11 -10 -9 -9 ------------ Run | Yrd Mat Mat Sto Used RIF Installer . | . . . . Robots Hacked . | . . . . Non-combat . | . . . . Combat . | . . . . Robot Hacks Applied . | . . . . Relay Couplers Released . | . . . . Fabnet Peak Effective % . | . . . . Robots Rewired . | . . . . Allies Hacked . | . . . . Hacks Repelled . | . . . . Allies | -11 -10 -9 -9 -------- Run | Yrd Mat Mat Sto Total Allies . | . . . . Largest Group . | . . . . Highest-Rated Group . | . . . . Highest-Rated Ally . | . . . . Total Orders . | . . . . Ally Attacks . | . . . . Total Damage . | . . . . Kills . | . . . . Allies Corrupted . | . . . . Allies Melted . | . . . . Intel | -11 -10 -9 -9 ------- Run | Yrd Mat Mat Sto Robot Analysis Total . | . . . . Derelict Logs Recovered . | . . . . Drone Launches . | . . . . Drone Recoveries . | . . . . Exploration | -11 -10 -9 -9 ------------- Run | Yrd Mat Mat Sto Turns Passed 2333 | 150 366 876 941 Spaces Moved 1726 | 110 240 726 650 Core 22 | 19 . 3 . Treads 94 | . . . 94 Legs 585 | 91 240 252 2 Wheels . | . . . . Hover . | . . . . Flight 1025 | . . 471 554 Fastest Speed 29 | 50 120 31 29 Average Speed 75 | 107 120 66 64 Slowest Speed 360 | 120 120 200 360 Overloaded Moves . | . . . . Propulsion Burnouts . | . . . . Robots Hopped 4 | . . . 4 Cave-ins Triggered . | . . . . Exploration Rate (%) 39 | 7 45 41 65 Regions Visited 3 Branch Regions 1 Pre-discovered Areas . | . . . . Known Exits Taken . | . . . . Unknown Exits Taken 3 | 1 1 1 . Scrap Searched . | . . . . Spaces Dug 6 | . . . 6 Terrain Destroyed 202 | . 20 125 57 Melee . | . . . . Projectile . | . . . . AOE 202 | . 20 125 57 Terrain Rammed . | . . . . Walls Destroyed . | . . . . Machines Disabled . | . . . . Actions | -11 -10 -9 -9 --------- Run | Yrd Mat Mat Sto Total 2452 | 128 288 988 1048 Wait 383 | . . 135 248 Move 1715 | 109 239 725 642 Hop 4 | . . . 4 Pick Up 51 | 6 11 15 19 Fast Attach 16 | . 1 7 8 Attach 27 | 5 1 2 19 Detach 8 | . . . 8 Swap 50 | . 8 19 23 Drop 41 | . 9 20 12 Fire 130 | 8 19 47 56 Melee 9 | . . . 9 Ram . | . . . . Kick . | . . . . Crush . | . . . . Escape Stasis . | . . . . Rewire . | . . . . Trap . | . . . . Miscellaneous 18 | . . 18 . Route ------- -11/Scrapyard -10/Materials (discovered 2 exits: *Mat / [*Min]) -9/Materials (discovered 4 exits: [*Mat] / [*Min] / *Sto x2) -9/Storage History --------- Turn | Location | Event 2 | -11/Scrapyard | Met Revision 17 113 | -11/Scrapyard | Discovered new exit (range 8) 151 | -11/Scrapyard | Entered Materials 259 | -10/Materials | Discovered new exit (range 14) 304 | -10/Materials | Build established: Mutant 501 | -10/Materials | Discovered new exit (range 8) 517 | -10/Materials | Entered another Materials area 517 | -9/Materials | Evolved 2 slots: Propulsion x2 552 | -9/Materials | Discovered new exit (range 10) 772 | -9/Materials | Discovered new exit (range 5) 1129 | -9/Materials | Discovered new exit (range 16) 1170 | -9/Materials | Repaired Flight Unit 1352 | -9/Materials | Discovered new exit (range 9) 1393 | -9/Materials | Entered Storage 1458 | -9/Storage | Lost 3 parts (1p2n) 1630 | -9/Storage | Lost 3 parts (3n) 1756 | -9/Storage | Core integrity fell below 50% 1793 | -9/Storage | First assault squad dispatched 1972 | -9/Storage | Core integrity fell below 20% 2015 | -9/Storage | Lost 5 parts (2n1u2w) 2187 | -9/Storage | Repaired Broken Imp. Flight Unit 2334 | -9/Storage | Destroyed by Y-45 Defender with Beam Rifle Last Messages --------------- 02301_ ALERT: Hostiles spotted, dispatching reinforcements to Terminal S014. 02304_ G-34 Mercenary suffers critical hit (Burn). 02304_ Sml. Laser melted. 02304_ G-34 Mercenary destroyed. 02304_ Seismic Detector destroyed. 02314_ Flight Unit destroyed. 02322_ Connecting with Terminal... >>Recall(Investigation) Establishing remote squad link... No tasked investigation squads found. 02328_ Lgt. Ion Engine destroyed. 02330_ Y-45 Defender suffers critical hit (Burn). 02330_ Y-45 Defender suffers critical hit (Burn). 02331_ System corrupted: Matter fused (-7). 02332_ Y-45 Defender heat short circuits Imp. Ion Engine. Map ----- +----------------------------------------------------+ | ????????????????????????????????????????????????? | | ????????????????????????????????????????????????? | | ????????????????????????????????????????????????? | | ????????????????????????????????????????????????? | | ????????????????????????????????????????????????? | | ????????????????????????????????????????????????? | | ????????????????????????????????????????????????? | | ????????????????????????????????????????????????? | | ???????????????????????# ????? #???????????????? | | ???????????????????????# ??? ???????????????? | | ???????????????????????# """ ###?????????????? | | ???????????????????????# """ ""#?????????????? | | ???????????????????????# T"#?????????????? | | ???????????????????????# """ ""??????????????? | | ???????????????????????# """ #???????????????? | | ???????????????????????? """ #???????????????? | | ?????????????????????????? ?????????????????? | | ?????????????#+###+#########+#################### | | ?????????????# ^ %% | | ?????????????+ | | ?????????????# % | | ?????????????## #########g############+######+##+ | | ????????????????????# """ #?????? ???# | | ????????????????????# "T" a #????== ?# | | ????????????????????# #### = = # | | ????????????????????# @ /Y + %*"" #| | | ????????????????????# ####! G" # | | ????????????????????# """"" #??#%[ "" # | | ????????????????????# """"" #?? ! # | | ????????????????????# """"" #?################## | | ????????????????????# #????########??# | | ????????????????????#### ########?#[[[ ]]#??# | | ???????????????????????###???# ##[ ]#??# | | ?????????????????????????????# ##! ]#??# | | ?????????????????????????????# ## #??# | | ?????????????????????????????# ### ###??# | | ?????????????????????????????# ## T#???# | | ?????????????????????????????# ## ##???# ! | | ?????????????????????????????# #####+########## | | ?????????????????????????????# | | ?????????????????????????????# | | ?????????????????????????????# | | ?????????????????????????????# #####+########## | | ?????????????????????????????# # ###### | | ?????????????????????????????# # """## | | ????????????????????##?#####?# # R"##" | | ???????????????????## ##"T"### # = """##" | | ???????????????????# # # #####" | | ???????????????????# # # """"" #???# | | ???????????????????# # # """"" #??#" | +----------------------------------------------------+ Best States ------------- Heat Dissipation 42 Energy Generation 14 Energy Capacity 280 Matter Stores 300 Matter Capacity 300 Sight Range 16 Terrain Scan Density 10 ECM Strength 1 Armor Coverage 150 Evasion (%) 63 Targeting Accuracy 6 Recoil Reduction 2 Item Schematics ----------------- None Robot Schematics ------------------ None Fabricated ------------ Nothing Alien Tech Used ----------------- None Achievements -------------- Remodeling Significant Disruption Storm Trooper Challenges ------------ None Game ------ Seed ExplosiveAnalysisBox Manual? 0 Play Time 00:56:40 Cumulative 5.4 hours Start 2024.04.16 @ 19:30:47 End 2024.04.16 @ 20:29:48 Sessions 1 Manual Loads 0 Difficulty Rogue Special Mode None Game No. 3 Rogue 3 Adventurer 0 Explorer 0 Win Type - Total 0 Types 0/0/0/0/0/0/0/0/0 Lore% 2 Gallery% 6 Achievement% 8 Wizard Run 0 Options --------- Layout 1 ASCII 0 Keyboard 0 Movement Mouse Keybinds 0 Fullscreen 2 Font 32/SmallcapsGlow Map View 50x35 Zoom Use 0% Tactical HUD 1 Map Filters NONE Filters NONE Steam 1 RUN: c1e039b1-0388-4639-86ef-352128b59ece